Workbook

Sheet p1
A2: Set | B2: Set 48
C6: 0.89

Sheet p2
B3: M1 | C3: M2 | D3: M3 | E3: M4 | F3: M5 | G3: M6
B4: 23399.2 | C4: 23250 | D4: 26274 | E4: 7465.3 | F4: 5511.8
B5: 5 | C5: 5 | D5: 6 | E5: 2 | F5: 2
B6: 0.967 | C6: 0.961 | D6: 0.905 | E6: 0.771 | F6: 0.569
B8: ='p1'!B2 -> Set 48
B9: =SUMIF('p3'!A2:A68,'p1'!B2,'p3'!B2:B68) -> 6360
B10: 0.96
B13: =B5 -> 5 | C13: =C5 -> 5 | D13: 6 | E13: =E5 -> 2 | F13: 2
B14: =B4/B13/$B9/$B10 -> 0.7664832285 | C14: =C4/C13/$B9/$B10 -> 0.7615959119 | D14: 0.7172104298 | E14: =E4/E13/$B9/$B10 -> 0.611348598 | F14: 0.4513725105
A15: formula | B15: ="="&SUBSTITUTE(_xlfn.XLOOKUP('p1'!$B$2,'p3'!$A$2:$A$68,'p3'!$C$2:$C$68),"VALUE",B14) -> =IF(0.76648322851153>=0.85,-4.00000000000008*0.76648322851153 + 7.79999999999999,IF(0.76648322851153>=0.5,12.571428571428*0.76648322851153^2 - 26.114285714285*0.76648322851153 + 17.5142857142855,-31*0.76648322851153 + 23.1)) | C15: ="="&SUBSTITUTE(_xlfn.XLOOKUP('p1'!$B$2,'p3'!$A$2:$A$68,'p3'!$C$2:$C$68),"VALUE",C14) -> =IF(0.761595911949686>=0.85,-4.00000000000008*0.761595911949686 + 7.79999999999999,IF(0.761595911949686>=0.5,12.571428571428*0.761595911949686^2 - 26.114285714285*0.761595911949686 + 17.5142857142855,-31*0.761595911949686 + 23.1)) | D15: ="="&SUBSTITUTE(_xlfn.XLOOKUP('p1'!$B$2,'p3'!$A$2:$A$68,'p3'!$C$2:$C$68),"VALUE",D14) -> =IF(0.717210429769392>=0.85,-4.00000000000008*0.717210429769392 + 7.79999999999999,IF(0.717210429769392>=0.5,12.571428571428*0.717210429769392^2 - 26.114285714285*0.717210429769392 + 17.5142857142855,-31*0.717210429769392 + 23.1)) | E15: ="="&SUBSTITUTE(_xlfn.XLOOKUP('p1'!$B$2,'p3'!$A$2:$A$68,'p3'!$C$2:$C$68),"VALUE",E14) -> =IF(0.611348598008386>=0.85,-4.00000000000008*0.611348598008386 + 7.79999999999999,IF(0.611348598008386>=0.5,12.571428571428*0.611348598008386^2 - 26.114285714285*0.611348598008386 + 17.5142857142855,-31*0.611348598008386 + 23.1)) | F15: ="="&SUBSTITUTE(_xlfn.XLOOKUP('p1'!$B$2,'p3'!$A$2:$A$68,'p3'!$C$2:$C$68),"VALUE",F14) -> =IF(0.45137251048218>=0.85,-4.00000000000008*0.45137251048218 + 7.79999999999999,IF(0.45137251048218>=0.5,12.571428571428*0.45137251048218^2 - 26.114285714285*0.45137251048218 + 17.5142857142855,-31*0.45137251048218 + 23.1))
B16: =TextToFormula -> 4.883794473 | C16: =TextToFormula -> 4.91753723 | D16: =TextToFormula -> 5.251474841 | E16: =TextToFormula -> 6.24788883 | F16: =TextToFormula -> 9.107452175
B17: =B14 -> 0.7664832285 | C17: =C14 -> 0.7615959119 | D17: 0.7172104298 | E17: =E14 -> 0.611348598 | F17: 0.4513725105
A18: formula | B18: ="="&SUBSTITUTE(_xlfn.XLOOKUP('p1'!$B$2,'p3'!$A$2:$A$68,'p3'!$D$2:$D$68),"VALUE",B17) -> =IF(0.76648322851153>=0.85,-160.000000000262*0.76648322851153 + 7257.00000000004,IF(0.76648322851153>=0.5,-51.4285714295692*0.76648322851153^2 - 967.714285712921*0.76648322851153 + 7980.71428571386,-9677.99999999999*0.76648322851153 + 12323)) | C18: ="="&SUBSTITUTE(_xlfn.XLOOKUP('p1'!$B$2,'p3'!$A$2:$A$68,'p3'!$D$2:$D$68),"VALUE",C17) -> =IF(0.761595911949686>=0.85,-160.000000000262*0.761595911949686 + 7257.00000000004,IF(0.761595911949686>=0.5,-51.4285714295692*0.761595911949686^2 - 967.714285712921*0.761595911949686 + 7980.71428571386,-9677.99999999999*0.761595911949686 + 12323)) | D18: ="="&SUBSTITUTE(_xlfn.XLOOKUP('p1'!$B$2,'p3'!$A$2:$A$68,'p3'!$D$2:$D$68),"VALUE",D17) -> =IF(0.717210429769392>=0.85,-160.000000000262*0.717210429769392 + 7257.00000000004,IF(0.717210429769392>=0.5,-51.4285714295692*0.717210429769392^2 - 967.714285712921*0.717210429769392 + 7980.71428571386,-9677.99999999999*0.717210429769392 + 12323)) | E18: ="="&SUBSTITUTE(_xlfn.XLOOKUP('p1'!$B$2,'p3'!$A$2:$A$68,'p3'!$D$2:$D$68),"VALUE",E17) -> =IF(0.611348598008386>=0.85,-160.000000000262*0.611348598008386 + 7257.00000000004,IF(0.611348598008386>=0.5,-51.4285714295692*0.611348598008386^2 - 967.714285712921*0.611348598008386 + 7980.71428571386,-9677.99999999999*0.611348598008386 + 12323)) | F18: ="="&SUBSTITUTE(_xlfn.XLOOKUP('p1'!$B$2,'p3'!$A$2:$A$68,'p3'!$D$2:$D$68),"VALUE",F17) -> =IF(0.45137251048218>=0.85,-160.000000000262*0.45137251048218 + 7257.00000000004,IF(0.45137251048218>=0.5,-51.4285714295692*0.45137251048218^2 - 967.714285712921*0.45137251048218 + 7980.71428571386,-9677.99999999999*0.45137251048218 + 12323))
B19: =TextToFormula -> 7208.763408 | C19: =TextToFormula -> 7213.877013 | D19: =TextToFormula -> 7260.205123 | E19: =TextToFormula -> 7369.882234 | F19: =TextToFormula -> 7954.616844
B21: 14
B22: 0.0062 | C22: 0.1401 | D22: 0.0826 | E22: 0.0069 | F22: 0.7642
B23: =$B21*B22 -> 0.0868 | C23: =$B21*C22 -> 1.9614 | D23: 1.1564 | E23: 0.0966 | F23: 10.6988
B25: =$B9*B14*B16/1000/'p1'!$C$6/1000*24*B23*B13 -> 0.2786301545 | C25: =$B9*C14*C16/1000/'p1'!$C$6/1000*24*C23*C13 -> 6.299220152 | D25: =$B9*D14*D16/1000/'p1'!$C$6/1000*24*D23*D13 -> 4.481935165 | E25: =$B9*E14*E16/1000/'p1'!$C$6/1000*24*E23*E13 -> 0.1265632699 | F25: =$B9*F14*F16/1000/'p1'!$C$6/1000*24*F23*F13 -> 15.08604577
B26: =$B9*B14*B19*24*B23*B13/49700/1000/0.45 -> 16.36637934 | C26: =$B9*C14*C19*24*C23*C13/49700/1000/0.45 -> 367.7299208 | D26: =$B9*D14*D19*24*D23*D13/49700/1000/0.45 -> 246.5779717 | E26: =$B9*E14*E19*24*E23*E13/49700/1000/0.45 -> 5.94095203 | F26: =$B9*F14*F19*24*F23*F13/49700/1000/0.45 -> 524.347125
B28: 1
B29: 0.9058 | C29: 0.0942 | D29: 0 | E29: 0 | F29: 0
B30: =$B28*B29 -> 0.9058 | C30: =$B28*C29 -> 0.0942 | D30: =$B28*D29 -> 0 | E30: =$B28*E29 -> 0 | F30: =$B28*F29 -> 0
B32: =$B9*B14*B16/1000/'p1'!$C$6/1000*24*B30*B13 -> 2.907640483 | C32: =$B9*C14*C16/1000/'p1'!$C$6/1000*24*C30*C13 -> 0.3025321394 | D32: =$B9*D14*D16/1000/'p1'!$C$6/1000*24*D30*D13 -> 0 | E32: =$B9*E14*E16/1000/'p1'!$C$6/1000*24*E30*E13 -> 0 | F32: =$B9*F14*F16/1000/'p1'!$C$6/1000*24*F30*F13 -> 0
B33: =$B16*B21*B26*24*B30*B20/49700/1000/0.45 -> 0 | C33: =$B16*C21*C26*24*C30*C20/49700/1000/0.45 -> 0 | D33: =$B16*D21*D26*24*D30*D20/49700/1000/0.45 -> 0 | E33: =$B16*E21*E26*24*E30*E20/49700/1000/0.45 -> 0 | F33: =$B16*F21*F26*24*F30*F20/49700/1000/0.45 -> 0
B36: =MAX(SUM(B25:F25),SUM(B32:F32)) -> 26.27239451 | C36: =SUM(B26:F26) -> 1160.962349
B37: 0.98
C38: 0.98
B39: 1.1 | C39: 1.05
B40: =B36/B37*B39 -> 29.48942241 | C40: =C36/C38*C39 -> 1243.888231
B41: =B40*1.1 -> 32.43836465 | C41: =C40*1.1 -> 1368.277054
B42: =IF(B41<100,ROUNDUP(B41,0),ROUNDUP(B41,-1)) -> 33 | C42: =ROUNDUP(C41,-1) -> 1370
B43: =B42 -> 33 | C43: =C42 -> 1370
C44: =C43/2 -> 685
B46: 1000
B47: 22
B49: =B46-B47-B43 -> 945 | C49: =IF(B49<0,"Alert!","OK") -> OK
B52: =MAX(B13:J13*B14:J14) -> 4.303262579
B53: =ROUNDUP(B52,0) -> 5 | D53: =B52/B53 -> 0.8606525157
C54: formula | D54: ="="&SUBSTITUTE(_xlfn.XLOOKUP('p1'!$B$2,'p3'!$A$2:$A$68,'p3'!$C$2:$C$68),"VALUE",D53) -> =IF(0.860652515723271>=0.85,-4.00000000000008*0.860652515723271 + 7.79999999999999,IF(0.860652515723271>=0.5,12.571428571428*0.860652515723271^2 - 26.114285714285*0.860652515723271 + 17.5142857142855,-31*0.860652515723271 + 23.1))
D55: =TextToFormula -> 4.357389937
B57: 8
B59: =$B9*D53*D55/1000/'p1'!$C$6/1000*B57*B53 -> 1.071966884
B61: 0.99
B62: 1.1
B64: =B59/B61*B62 -> 1.191074316
B65: =B64*1.1 -> 1.310181747
B66: =ROUNDUP(B65,0) -> 2
B67: =B66 -> 2
B69: 50
B70: 2
B72: =2*B69-B70*B67 -> 96 | C72: =IF(B72<0,"Alert!","OK") -> OK
B76: 24
B78: =B59/B57*B76 -> 3.215900652
B80: 0.99
B81: 1.1
B82: 1
B83: =B78/B80*B81/B82 -> 3.573222947
B84: =B83*1.1 -> 3.930545241
B85: =ROUNDUP(B84,0) -> 4
B86: =B85 -> 4
B88: 120
B89: 1
B91: =B88-B89*B86 -> 116 | C91: =IF(B91<0,"Alert!","OK") -> OK

Sheet p3
B1: P | C1: D1 | D1: D2 | E1: D3
A3: Set 01 | B3: 957.9
A4: Set 02 | B4: 1603
A5: Set 03 | B5: 1825
A6: Set 04 | B6: 1889
A7: Set 05 | B7: 2500
A8: Set 06 | B8: 1930
A9: Set 07 | B9: 1930
A10: Set 08 | B10: 3800
A11: Set 09 | B11: 5420
A12: Set 10 | B12: 6000
A13: Set 11 | B13: 7680
A14: Set 12 | B14: 3600 | C14: IF(VALUE>=0.85,19.9999999999974*VALUE + 155.000000000001,-6414.6964213252*VALUE^5 + 15696.4702125489*VALUE^4 - 14659.909549588*VALUE^3 + 6604.79645950556*VALUE^2 - 1505.96747775728*VALUE^1 + 335.703192599174) | E14: =13*0.000755858*1000 -> 9.826154
A15: Set 13 | B15: 4060 | C15: IF(VALUE>=0.85,10.0000000000012*VALUE + 166.500000000005,220.268620280083*VALUE^4 - 1125.25030527152*VALUE^3 + 1479.70573871962*VALUE^2 - 737.107753362321*VALUE^1 + 308.516941393028) | E15: =13*0.000755858*1000 -> 9.826154
A16: Set 14 | B16: 4800 | C16: IF(VALUE>=0.85,19.9999999999974*VALUE + 155.000000000001,-6414.6964213252*VALUE^5 + 15696.4702125489*VALUE^4 - 14659.909549588*VALUE^3 + 6604.79645950556*VALUE^2 - 1505.96747775728*VALUE^1 + 335.703192599174) | E16: 9.826154
A17: Set 15 | B17: 5400 | C17: IF(VALUE>=0.85,19.9999999999974*VALUE + 155.000000000001,-6414.6964213252*VALUE^5 + 15696.4702125489*VALUE^4 - 14659.909549588*VALUE^3 + 6604.79645950556*VALUE^2 - 1505.96747775728*VALUE^1 + 335.703192599174) | E17: 9.826154
A18: Set 16 | B18: 6000 | C18: IF(VALUE>=0.85,19.9999999999974*VALUE + 155.000000000001,-6414.6964213252*VALUE^5 + 15696.4702125489*VALUE^4 - 14659.909549588*VALUE^3 + 6604.79645950556*VALUE^2 - 1505.96747775728*VALUE^1 + 335.703192599174) | E18: 9.826154
A19: Set 17 | B19: 7200 | C19: IF(VALUE>=0.85,23.3333333333328*VALUE + 151.166666666665,-7016.53902375698*VALUE^5 + 17230.5694482922*VALUE^4 - 16090.1021365166*VALUE^3 + 7191.39644346774*VALUE^2 - 1606.88333976646*VALUE^1 + 341.211580050282) | E19: 9.826154
A20: Set 18 | B20: 8120 | C20: IF(VALUE>=0.85,13.3333333333316*VALUE + 162.666666666669,156.776556786615*VALUE^4 - 1023.66300368197*VALUE^3 + 1426.5311355435*VALUE^2 - 726.790293044539*VALUE^1 + 307.921703297768) | E20: 9.826154
A21: Set 19 | B21: 9600 | C21: IF(VALUE>=0.85,23.3333333333328*VALUE + 151.166666666665,-7016.53902375698*VALUE^5 + 17230.5694482922*VALUE^4 - 16090.1021365166*VALUE^3 + 7191.39644346774*VALUE^2 - 1606.88333976646*VALUE^1 + 341.211580050282) | E21: 9.826154
A22: Set 20 | B22: 12000 | C22: IF(VALUE>=0.85,23.3333333333328*VALUE + 151.166666666665,-7016.53902375698*VALUE^5 + 17230.5694482922*VALUE^4 - 16090.1021365166*VALUE^3 + 7191.39644346774*VALUE^2 - 1606.88333976646*VALUE^1 + 341.211580050282) | E22: 9.826154
A23: Set 21 | B23: 3600 | C23: IF(VALUE>=0.85,6.6666666666658*VALUE + 168.333333333333,-8241.31424945592*VALUE^5 + 20052.5141722857*VALUE^4 - 18458.6152916491*VALUE^3 + 8081.21770620942*VALUE^2 - 1751.10545110288*VALUE^1 + 348.834144990409) | E23: 9.826154
A24: Set 22 | B24: 4060 | C24: IF(VALUE>=0.85,10.0000000000012*VALUE + 166.500000000005,220.268620280083*VALUE^4 - 1125.25030527152*VALUE^3 + 1479.70573871962*VALUE^2 - 737.107753362321*VALUE^1 + 308.516941393028) | E24: 9.826154
A25: Set 23 | B25: 4800 | C25: IF(VALUE>=0.85,6.6666666666658*VALUE + 168.333333333333,-8241.31424945592*VALUE^5 + 20052.5141722857*VALUE^4 - 18458.6152916491*VALUE^3 + 8081.21770620942*VALUE^2 - 1751.10545110288*VALUE^1 + 348.834144990409) | E25: 9.826154
A26: Set 24 | B26: 5400 | C26: IF(VALUE>=0.85,6.6666666666658*VALUE + 168.333333333333,-8241.31424945592*VALUE^5 + 20052.5141722857*VALUE^4 - 18458.6152916491*VALUE^3 + 8081.21770620942*VALUE^2 - 1751.10545110288*VALUE^1 + 348.834144990409) | E26: 9.826154
A27: Set 25 | B27: 6000 | C27: IF(VALUE>=0.85,6.6666666666658*VALUE + 168.333333333333,-8241.31424945592*VALUE^5 + 20052.5141722857*VALUE^4 - 18458.6152916491*VALUE^3 + 8081.21770620942*VALUE^2 - 1751.10545110288*VALUE^1 + 348.834144990409) | E27: 9.826154
A28: Set 26 | B28: 7200 | C28: IF(VALUE>=0.85,9.99999999999617*VALUE + 164.500000000007,-8843.15685164928*VALUE^5 + 21586.6134075522*VALUE^4 - 19888.8078777552*VALUE^3 + 8667.81768990636*VALUE^2 - 1852.02131308377*VALUE^1 + 354.342532440556) | E28: 9.826154
A29: Set 27 | B29: 8120 | C29: IF(VALUE>=0.85,13.3333333333316*VALUE + 162.666666666669,156.776556786615*VALUE^4 - 1023.66300368197*VALUE^3 + 1426.5311355435*VALUE^2 - 726.790293044539*VALUE^1 + 307.921703297768) | E29: 9.826154
A30: Set 28 | B30: 9600 | C30: IF(VALUE>=0.85,9.99999999999617*VALUE + 164.500000000007,-8843.15685164928*VALUE^5 + 21586.6134075522*VALUE^4 - 19888.8078777552*VALUE^3 + 8667.81768990636*VALUE^2 - 1852.02131308377*VALUE^1 + 354.342532440556) | E30: 9.826154
A31: Set 29 | B31: 12000 | C31: IF(VALUE>=0.85,9.99999999999617*VALUE + 164.500000000007,-8843.15685164928*VALUE^5 + 21586.6134075522*VALUE^4 - 19888.8078777552*VALUE^3 + 8667.81768990636*VALUE^2 - 1852.02131308377*VALUE^1 + 354.342532440556) | E31: 9.826154
A32: Set 30 | B32: 3600 | C32: IF(VALUE>=0,-984.126989364624*VALUE^5 + 3309.52382850646*VALUE^4 - 4302.46034145355*VALUE^3 + 2766.48810917139*VALUE^2 - 923.037702590227*VALUE^1 + 309.613096068185,1) | E32: 9.826154
A33: Set 31 | B33: 4060 | C33: IF(VALUE>=0.85,23.3333333333278*VALUE + 153.166666666668,IF(VALUE>=0.75,-50.0000000000147*VALUE + 215.500000000017,-543.333333333255*VALUE^3 + 898.999999999476*VALUE^2 - 498.541666666555*VALUE^1 + 275.437500000053)) | E33: 9.826154
A34: Set 32 | B34: 4800 | C34: IF(VALUE>=0,-984.126989364624*VALUE^5 + 3309.52382850646*VALUE^4 - 4302.46034145355*VALUE^3 + 2766.48810917139*VALUE^2 - 923.037702590227*VALUE^1 + 309.613096068185,1) | E34: 9.826154
A35: Set 33 | B35: 5400 | C35: IF(VALUE>=0,-984.126989364624*VALUE^5 + 3309.52382850646*VALUE^4 - 4302.46034145355*VALUE^3 + 2766.48810917139*VALUE^2 - 923.037702590227*VALUE^1 + 309.613096068185,1) | E35: 9.826154
A36: Set 34 | B36: 6000 | C36: IF(VALUE>=0,-984.126989364624*VALUE^5 + 3309.52382850646*VALUE^4 - 4302.46034145355*VALUE^3 + 2766.48810917139*VALUE^2 - 923.037702590227*VALUE^1 + 309.613096068185,1) | E36: 9.826154
A37: Set 35 | B37: 7200 | C37: IF(VALUE>=0,-2698.41271185874*VALUE^5 + 9014.28576010465*VALUE^4 - 11573.4127558171*VALUE^3 + 7161.94051017612*VALUE^2 - 2168.04961301665*VALUE^1 + 439.148810940739,1) | E37: 9.826154
A38: Set 36 | B38: 8120 | C38: IF(VALUE>=0.85,26.6666666666632*VALUE + 149.333333333332,IF(VALUE>=0.75,-60.0000000000062*VALUE + 223.000000000016,-543.333333333255*VALUE^3 + 898.999999999476*VALUE^2 - 498.541666666555*VALUE^1 + 275.437500000053)) | E38: 9.826154
A39: Set 37 | B39: 9600 | C39: IF(VALUE>=0,-2698.41271185874*VALUE^5 + 9014.28576010465*VALUE^4 - 11573.4127558171*VALUE^3 + 7161.94051017612*VALUE^2 - 2168.04961301665*VALUE^1 + 439.148810940739,1) | E39: 9.826154
A40: Set 38 | B40: 10800 | C40: IF(VALUE>=0,-2698.41271185874*VALUE^5 + 9014.28576010465*VALUE^4 - 11573.4127558171*VALUE^3 + 7161.94051017612*VALUE^2 - 2168.04961301665*VALUE^1 + 439.148810940739,1) | E40: 9.826154
A41: Set 39 | B41: 12000 | C41: IF(VALUE>=0,-2698.41271185874*VALUE^5 + 9014.28576010465*VALUE^4 - 11573.4127558171*VALUE^3 + 7161.94051017612*VALUE^2 - 2168.04961301665*VALUE^1 + 439.148810940739,1) | E41: 9.826154
A42: Set 40 | B42: 3480 | C42: IF(VALUE>=0,-33.523809524253*VALUE^3 + 157.828571429476*VALUE^2 - 187.076190476946*VALUE^1 + 247.471428571646,1) | E42: -42.6666666666661*VALUE^3 + 104*VALUE^2 - 87.3333333333311*VALUE + 37.9999999999985
A43: Set 41 | B43: 4240 | C43: IF(VALUE>=0.85,5.99999999999972*VALUE + 169.800000000005,IF(VALUE>=0.5,1.71428571428987*VALUE^2 - 29.7428571428645*VALUE + 198.94285714286, -241.95*VALUE + 305.475)) | E43: -42.6666666666661*VALUE^3 + 104*VALUE^2 - 87.3333333333311*VALUE + 37.9999999999985
A44: Set 42 | B44: 4240 | C44: IF(VALUE>=0.85,-4.00000000000008*VALUE + 7.79999999999999,IF(VALUE>=0.5,12.571428571428*VALUE^2 - 26.114285714285*VALUE + 17.5142857142855,-31*VALUE + 23.1)) | D44: IF(VALUE>=0.85,-160.000000000262*VALUE + 7257.00000000004,IF(VALUE>=0.5,-51.4285714295692*VALUE^2 - 967.714285712921*VALUE + 7980.71428571386,-9677.99999999999*VALUE + 12323)) | E44: 0
A45: Set 43 | B45: 4240 | C45: 0 | D45: -883.809523805975*VALUE^3 + 4004.57142857462*VALUE^2 - 5728.19047619961*VALUE + 9761.42857143228 | E45: 0
A46: Set 44 | B46: 5300 | C46: IF(VALUE>=0.85,5.99999999999972*VALUE + 169.800000000005,IF(VALUE>=0.5,1.71428571428987*VALUE^2 - 29.7428571428645*VALUE + 198.94285714286, -241.95*VALUE + 305.475)) | E46: -42.6666666666661*VALUE^3 + 104*VALUE^2 - 87.3333333333311*VALUE + 37.9999999999985
A47: Set 45 | B47: 5300 | C47: IF(VALUE>=0.85,-4.00000000000008*VALUE + 7.79999999999999,IF(VALUE>=0.5,12.571428571428*VALUE^2 - 26.114285714285*VALUE + 17.5142857142855,-31*VALUE + 23.1)) | D47: IF(VALUE>=0.85,-160.000000000262*VALUE + 7257.00000000004,IF(VALUE>=0.5,-51.4285714295692*VALUE^2 - 967.714285712921*VALUE + 7980.71428571386,-9677.99999999999*VALUE + 12323)) | E47: 0
A48: Set 46 | B48: 5300 | C48: 0 | D48: -883.809523805975*VALUE^3 + 4004.57142857462*VALUE^2 - 5728.19047619961*VALUE + 9761.42857143228 | E48: 0
A49: Set 47 | B49: 6360 | C49: IF(VALUE>=0.85,5.99999999999972*VALUE + 169.800000000005,IF(VALUE>=0.5,1.71428571428987*VALUE^2 - 29.7428571428645*VALUE + 198.94285714286, -241.95*VALUE + 305.475)) | E49: -42.6666666666661*VALUE^3 + 104*VALUE^2 - 87.3333333333311*VALUE + 37.9999999999985
A50: Set 48 | B50: 6360 | C50: IF(VALUE>=0.85,-4.00000000000008*VALUE + 7.79999999999999,IF(VALUE>=0.5,12.571428571428*VALUE^2 - 26.114285714285*VALUE + 17.5142857142855,-31*VALUE + 23.1)) | D50: IF(VALUE>=0.85,-160.000000000262*VALUE + 7257.00000000004,IF(VALUE>=0.5,-51.4285714295692*VALUE^2 - 967.714285712921*VALUE + 7980.71428571386,-9677.99999999999*VALUE + 12323)) | E50: 0
A51: Set 49 | B51: 6360 | C51: 0 | D51: -883.809523805975*VALUE^3 + 4004.57142857462*VALUE^2 - 5728.19047619961*VALUE + 9761.42857143228 | E51: 0
A52: Set 50 | B52: 5760 | E52: -42.6666666666661*VALUE^3 + 104*VALUE^2 - 87.3333333333311*VALUE + 37.9999999999985
A53: Set 51 | B53: 6600 | E53: -42.6666666666661*VALUE^3 + 104*VALUE^2 - 87.3333333333311*VALUE + 37.9999999999985
A54: Set 52 | B54: 5760 | C54: ='p4'!N49 -> IF(VALUE>=0.85,0*VALUE^6+0*VALUE^5+0*VALUE^4+0*VALUE^3+0*VALUE^2+18.6666666666666*VALUE + 168.533333333333,IF(VALUE>=0.5,0*VALUE^6+0*VALUE^5+0*VALUE^4+-349.919413919413*VALUE^3+832.545054945053*VALUE^2+-658.352014652014*VALUE+357.37967032967,0*VALUE^6+0*VALUE^5+0*VALUE^4+-349.919413919413*VALUE^3+832.545054945053*VALUE^2+-658.352014652014*VALUE+357.37967032967)) | E54: -42.6666666666661*VALUE^3 + 104*VALUE^2 - 87.3333333333311*VALUE + 37.9999999999985
A55: Set 53 | B55: 5760 | C55: ='p4'!N15 -> IF(VALUE>=0.85,0*VALUE^6+0*VALUE^5+0*VALUE^4+0*VALUE^3+0*VALUE^2+-2*VALUE + 3.9,IF(VALUE>=0.5,0*VALUE^6+0*VALUE^5+0*VALUE^4+-64.0293040293037*VALUE^3+140.747252747252*VALUE^2+-105.099267399267*VALUE+29.1664835164835,0*VALUE^6+0*VALUE^5+0*VALUE^4+-64.0293040293037*VALUE^3+140.747252747252*VALUE^2+-105.099267399267*VALUE+29.1664835164835)) | D55: ='p4'!N32 -> IF(VALUE>=0.85,0*VALUE^6+0*VALUE^5+0*VALUE^4+0*VALUE^3+0*VALUE^2+-926.666666666667*VALUE + 8275.16666666667,IF(VALUE>=0.5,0*VALUE^6+0*VALUE^5+0*VALUE^4+-9312.23443223434*VALUE^3+21289.9780219779*VALUE^2+-18306.1941391941*VALUE+13384.6318681319,0*VALUE^6+0*VALUE^5+0*VALUE^4+-9312.23443223434*VALUE^3+21289.9780219779*VALUE^2+-18306.1941391941*VALUE+13384.6318681319)) | E55: -42.6666666666661*VALUE^3 + 104*VALUE^2 - 87.3333333333311*VALUE + 37.9999999999985
A56: Set 54 | B56: 8260 | E56: -42.6666666666661*VALUE^3 + 104*VALUE^2 - 87.3333333333311*VALUE + 37.9999999999985
A57: Set 55 | B57: 7420 | C57: IF(VALUE>=0.85,5.99999999999972*VALUE + 169.800000000005,IF(VALUE>=0.5,1.71428571428987*VALUE^2 - 29.7428571428645*VALUE + 198.94285714286, -241.95*VALUE + 305.475)) | E57: -42.6666666666661*VALUE^3 + 104*VALUE^2 - 87.3333333333311*VALUE + 37.9999999999985
A58: Set 56 | B58: 7420 | C58: IF(VALUE>=0.85,-4.00000000000008*VALUE + 7.79999999999999,IF(VALUE>=0.5,12.571428571428*VALUE^2 - 26.114285714285*VALUE + 17.5142857142855,-31*VALUE + 23.1)) | D58: IF(VALUE>=0.85,-160.000000000262*VALUE + 7257.00000000004,IF(VALUE>=0.5,-51.4285714295692*VALUE^2 - 967.714285712921*VALUE + 7980.71428571386,-9677.99999999999*VALUE + 12323)) | E58: 0
A59: Set 57 | B59: 7420 | C59: 0 | D59: -883.809523805975*VALUE^3 + 4004.57142857462*VALUE^2 - 5728.19047619961*VALUE + 9761.42857143228 | E59: 0
A60: Set 58 | B60: 9440 | E60: -42.6666666666661*VALUE^3 + 104*VALUE^2 - 87.3333333333311*VALUE + 37.9999999999985
A61: Set 59 | B61: 8480 | C61: IF(VALUE>=0.85,5.99999999999972*VALUE + 169.800000000005,IF(VALUE>=0.5,1.71428571428987*VALUE^2 - 29.7428571428645*VALUE + 198.94285714286, -241.95*VALUE + 305.475)) | E61: -42.6666666666661*VALUE^3 + 104*VALUE^2 - 87.3333333333311*VALUE + 37.9999999999985
A62: Set 60 | B62: 8480 | C62: IF(VALUE>=0.85,-4.00000000000008*VALUE + 7.79999999999999,IF(VALUE>=0.5,12.571428571428*VALUE^2 - 26.114285714285*VALUE + 17.5142857142855,-31*VALUE + 23.1)) | D62: IF(VALUE>=0.85,-160.000000000262*VALUE + 7257.00000000004,IF(VALUE>=0.5,-51.4285714295692*VALUE^2 - 967.714285712921*VALUE + 7980.71428571386,-9677.99999999999*VALUE + 12323)) | E62: 0
A63: Set 61 | B63: 8480 | C63: 0 | D63: -883.809523805975*VALUE^3 + 4004.57142857462*VALUE^2 - 5728.19047619961*VALUE + 9761.42857143228 | E63: 0
A64: Set 62 | B64: 8960 | E64: -42.6666666666661*VALUE^3 + 104*VALUE^2 - 87.3333333333311*VALUE + 37.9999999999985
A65: Set 63 | B65: 6960 | E65: -42.6666666666661*VALUE^3 + 104*VALUE^2 - 87.3333333333311*VALUE + 37.9999999999985
A66: Set 64 | B66: 7680 | C66: ='p4'!N49 -> IF(VALUE>=0.85,0*VALUE^6+0*VALUE^5+0*VALUE^4+0*VALUE^3+0*VALUE^2+18.6666666666666*VALUE + 168.533333333333,IF(VALUE>=0.5,0*VALUE^6+0*VALUE^5+0*VALUE^4+-349.919413919413*VALUE^3+832.545054945053*VALUE^2+-658.352014652014*VALUE+357.37967032967,0*VALUE^6+0*VALUE^5+0*VALUE^4+-349.919413919413*VALUE^3+832.545054945053*VALUE^2+-658.352014652014*VALUE+357.37967032967)) | E66: -42.6666666666661*VALUE^3 + 104*VALUE^2 - 87.3333333333311*VALUE + 37.9999999999985
A67: Set 65 | B67: 7680 | C67: ='p4'!N15 -> IF(VALUE>=0.85,0*VALUE^6+0*VALUE^5+0*VALUE^4+0*VALUE^3+0*VALUE^2+-2*VALUE + 3.9,IF(VALUE>=0.5,0*VALUE^6+0*VALUE^5+0*VALUE^4+-64.0293040293037*VALUE^3+140.747252747252*VALUE^2+-105.099267399267*VALUE+29.1664835164835,0*VALUE^6+0*VALUE^5+0*VALUE^4+-64.0293040293037*VALUE^3+140.747252747252*VALUE^2+-105.099267399267*VALUE+29.1664835164835)) | D67: ='p4'!N32 -> IF(VALUE>=0.85,0*VALUE^6+0*VALUE^5+0*VALUE^4+0*VALUE^3+0*VALUE^2+-926.666666666667*VALUE + 8275.16666666667,IF(VALUE>=0.5,0*VALUE^6+0*VALUE^5+0*VALUE^4+-9312.23443223434*VALUE^3+21289.9780219779*VALUE^2+-18306.1941391941*VALUE+13384.6318681319,0*VALUE^6+0*VALUE^5+0*VALUE^4+-9312.23443223434*VALUE^3+21289.9780219779*VALUE^2+-18306.1941391941*VALUE+13384.6318681319)) | E67: -42.6666666666661*VALUE^3 + 104*VALUE^2 - 87.3333333333311*VALUE + 37.9999999999985

Sheet p4
A1: Set 53
A2: Reference data: | N2: x6 | O2: x5 | P2: x4 | Q2: x3 | R2: x2 | S2: x | T2: b
A3: 1 | B3: 1.9
A4: 0.85 | B4: 2.2 | M4: s2 | N4: 0 | O4: 0 | P4: 0 | Q4: 0 | R4: 0 | S4: =LINEST(B3:B4,A3:A4,TRUE,FALSE) -> -2 | T4: 3.9
A5: 0.75 | B5: 2.5 | M5: s1 | N5: 0 | O5: 0 | P5: 0 | Q5: =LINEST(B4:B7,A4:A7^{1,2,3},TRUE,FALSE) -> -64.02930403 | R5: 140.7472527 | S5: -105.0992674 | T5: 29.16648352
A6: 0.5 | B6: 3.8 | M6: s3
A7: 0.1 | B7: 20
A9: Extrapolated ref: | C9: Deviation:
A10: 1 | B10: =IF(A10>=0.85,N4*A10^6+O4*A10^5+P4*A10^4+Q4*A10^3+R4*A10^2+S4*A10 + T4,IF(A10>=0.5,N5*A10^6+O5*A10^5+P5*A10^4+Q5*A10^3+R5*A10^2+S5*A10+T5,N5*A10^6+O5*A10^5+P5*A10^4+Q5*A10^3+R5*A10^2+S5*A10+T5)) -> 1.9 | C10: =ABS(B3-B10) -> 0
A11: 0.85 | B11: =IF(A11>=0.85,N4*A11^6+O4*A11^5+P4*A11^4+Q4*A11^3+R4*A11^2+S4*A11 + T4,IF(A11>=0.5,N5*A11^6+O5*A11^5+P5*A11^4+Q5*A11^3+R5*A11^2+S5*A11+T5,N5*A11^6+O5*A11^5+P5*A11^4+Q5*A11^3+R5*A11^2+S5*A11+T5)) -> 2.2 | C11: =ABS(B4-B11) -> 0
A12: 0.75 | B12: =IF(A12>=0.85,N4*A12^6+O4*A12^5+P4*A12^4+Q4*A12^3+R4*A12^2+S4*A12 + T4,IF(A12>=0.5,N5*A12^6+O5*A12^5+P5*A12^4+Q5*A12^3+R5*A12^2+S5*A12+T5,N5*A12^6+O5*A12^5+P5*A12^4+Q5*A12^3+R5*A12^2+S5*A12+T5)) -> 2.5 | C12: =ABS(B5-B12) -> 3.552713679e-15
A13: 0.5 | B13: =IF(A13>=0.85,N4*A13^6+O4*A13^5+P4*A13^4+Q4*A13^3+R4*A13^2+S4*A13 + T4,IF(A13>=0.5,N5*A13^6+O5*A13^5+P5*A13^4+Q5*A13^3+R5*A13^2+S5*A13+T5,N5*A13^6+O5*A13^5+P5*A13^4+Q5*A13^3+R5*A13^2+S5*A13+T5)) -> 3.8 | C13: =ABS(B6-B13) -> 2.220446049e-14
A15: Extrapolated example: | M15: formula | N15: ="IF(VALUE>=0.85,"&N4&"*VALUE^6+"&O4&"*VALUE^5+"&P4&"*VALUE^4+"&Q4&"*VALUE^3+"&R4&"*VALUE^2+"&S4&"*VALUE + "&T4&",IF(VALUE>=0.5,"&N5&"*VALUE^6+"&O5&"*VALUE^5+"&P5&"*VALUE^4+"&Q5&"*VALUE^3+"&R5&"*VALUE^2+"&S5&"*VALUE+"&T5&","&N5&"*VALUE^6+"&O5&"*VALUE^5+"&P5&"*VALUE^4+"&Q5&"*VALUE^3+"&R5&"*VALUE^2+"&S5&"*VALUE+"&T5&"))" -> IF(VALUE>=0.85,0*VALUE^6+0*VALUE^5+0*VALUE^4+0*VALUE^3+0*VALUE^2+-2*VALUE + 3.9,IF(VALUE>=0.5,0*VALUE^6+0*VALUE^5+0*VALUE^4+-64.0293040293037*VALUE^3+140.747252747252*VALUE^2+-105.099267399267*VALUE+29.1664835164835,0*VALUE^6+0*VALUE^5+0*VALUE^4+-64.0293040293037*VALUE^3+140.747252747252*VALUE^2+-105.099267399267*VALUE+29.1664835164835))
A16: 0.65 | B16: =IF(A16>=0.85,N4*A16^6+O4*A16^5+P4*A16^4+Q4*A16^3+R4*A16^2+S4*A16 + T4,IF(A16>=0.5,N5*A16^6+O5*A16^5+P5*A16^4+Q5*A16^3+R5*A16^2+S5*A16+T5,N5*A16^6+O5*A16^5+P5*A16^4+Q5*A16^3+R5*A16^2+S5*A16+T5)) -> 2.733626374
A18: Set 53 (D2)
A19: Reference data: | N19: x6 | O19: x5 | P19: x4 | Q19: x3 | R19: x2 | S19: x | T19: b
A20: 1 | B20: 7348.5
A21: 0.85 | B21: 7487.5 | M21: s2 | N21: 0 | O21: 0 | P21: 0 | Q21: 0 | R21: 0 | S21: =LINEST(B20:B21,A20:A21,TRUE,FALSE) -> -926.6666667 | T21: 8275.166667
A22: 0.75 | B22: 7702 | M22: s1 | N22: 0 | O22: 0 | P22: 0 | Q22: =LINEST(B21:B24,A21:A24^{1,2,3},TRUE,FALSE) -> -9312.234432 | R22: 21289.97802 | S22: -18306.19414 | T22: 13384.63187
A23: 0.5 | B23: 8390 | M23: s3
A24: 0.1 | B24: =B20*1.6 -> 11757.6
A26: Extrapolated ref: | C26: Deviation:
A27: 1 | B27: =IF(A27>=0.85,N21*A27^6+O21*A27^5+P21*A27^4+Q21*A27^3+R21*A27^2+S21*A27 + T21,IF(A27>=0.5,N22*A27^6+O22*A27^5+P22*A27^4+Q22*A27^3+R22*A27^2+S22*A27+T22,N22*A27^6+O22*A27^5+P22*A27^4+Q22*A27^3+R22*A27^2+S22*A27+T22)) -> 7348.5 | C27: =ABS(B20-B27) -> 0
A28: 0.85 | B28: =IF(A28>=0.85,N21*A28^6+O21*A28^5+P21*A28^4+Q21*A28^3+R21*A28^2+S21*A28 + T21,IF(A28>=0.5,N22*A28^6+O22*A28^5+P22*A28^4+Q22*A28^3+R22*A28^2+S22*A28+T22,N22*A28^6+O22*A28^5+P22*A28^4+Q22*A28^3+R22*A28^2+S22*A28+T22)) -> 7487.5 | C28: =ABS(B21-B28) -> 0
A29: 0.75 | B29: =IF(A29>=0.85,N21*A29^6+O21*A29^5+P21*A29^4+Q21*A29^3+R21*A29^2+S21*A29 + T21,IF(A29>=0.5,N22*A29^6+O22*A29^5+P22*A29^4+Q22*A29^3+R22*A29^2+S22*A29+T22,N22*A29^6+O22*A29^5+P22*A29^4+Q22*A29^3+R22*A29^2+S22*A29+T22)) -> 7702 | C29: =ABS(B22-B29) -> 1.818989404e-12
A30: 0.5 | B30: =IF(A30>=0.85,N21*A30^6+O21*A30^5+P21*A30^4+Q21*A30^3+R21*A30^2+S21*A30 + T21,IF(A30>=0.5,N22*A30^6+O22*A30^5+P22*A30^4+Q22*A30^3+R22*A30^2+S22*A30+T22,N22*A30^6+O22*A30^5+P22*A30^4+Q22*A30^3+R22*A30^2+S22*A30+T22)) -> 8390 | C30: =ABS(B23-B30) -> 0
A32: Extrapolated example: | M32: formula | N32: ="IF(VALUE>=0.85,"&N21&"*VALUE^6+"&O21&"*VALUE^5+"&P21&"*VALUE^4+"&Q21&"*VALUE^3+"&R21&"*VALUE^2+"&S21&"*VALUE + "&T21&",IF(VALUE>=0.5,"&N22&"*VALUE^6+"&O22&"*VALUE^5+"&P22&"*VALUE^4+"&Q22&"*VALUE^3+"&R22&"*VALUE^2+"&S22&"*VALUE+"&T22&","&N22&"*VALUE^6+"&O22&"*VALUE^5+"&P22&"*VALUE^4+"&Q22&"*VALUE^3+"&R22&"*VALUE^2+"&S22&"*VALUE+"&T22&"))" -> IF(VALUE>=0.85,0*VALUE^6+0*VALUE^5+0*VALUE^4+0*VALUE^3+0*VALUE^2+-926.666666666667*VALUE + 8275.16666666667,IF(VALUE>=0.5,0*VALUE^6+0*VALUE^5+0*VALUE^4+-9312.23443223434*VALUE^3+21289.9780219779*VALUE^2+-18306.1941391941*VALUE+13384.6318681319,0*VALUE^6+0*VALUE^5+0*VALUE^4+-9312.23443223434*VALUE^3+21289.9780219779*VALUE^2+-18306.1941391941*VALUE+13384.6318681319))
A33: 0.93 | B33: =IF(A33>=0.85,N21*A33^6+O21*A33^5+P21*A33^4+Q21*A33^3+R21*A33^2+S21*A33 + T21,IF(A33>=0.5,N22*A33^6+O22*A33^5+P22*A33^4+Q22*A33^3+R22*A33^2+S22*A33+T22,N22*A33^6+O22*A33^5+P22*A33^4+Q22*A33^3+R22*A33^2+S22*A33+T22)) -> 7413.366667
A35: Set 52
A36: Reference data: | N36: x6 | O36: x5 | P36: x4 | Q36: x3 | R36: x2 | S36: x | T36: b
A37: 1 | B37: 187.2
A38: 0.85 | B38: 184.4 | M38: s2 | N38: 0 | O38: 0 | P38: 0 | Q38: 0 | R38: 0 | S38: =LINEST(B37:B38,A37:A38,TRUE,FALSE) -> 18.66666667 | T38: 168.5333333
A39: 0.75 | B39: 184.3 | M39: s1 | N39: 0 | O39: 0 | P39: 0 | Q39: =LINEST(B38:B41,A38:A41^{1,2,3},TRUE,FALSE) -> -349.9194139 | R39: 832.5450549 | S39: -658.3520147 | T39: 357.3796703
A40: 0.5 | B40: 192.6 | M40: s3
A41: 0.1 | B41: =B37*1.6 -> 299.52
A43: Extrapolated ref: | C43: Deviation:
A44: 1 | B44: =IF(A44>=0.85,N38*A44^6+O38*A44^5+P38*A44^4+Q38*A44^3+R38*A44^2+S38*A44 + T38,IF(A44>=0.5,N39*A44^6+O39*A44^5+P39*A44^4+Q39*A44^3+R39*A44^2+S39*A44+T39,N39*A44^6+O39*A44^5+P39*A44^4+Q39*A44^3+R39*A44^2+S39*A44+T39)) -> 187.2 | C44: =ABS(B37-B44) -> 0
A45: 0.85 | B45: =IF(A45>=0.85,N38*A45^6+O38*A45^5+P38*A45^4+Q38*A45^3+R38*A45^2+S38*A45 + T38,IF(A45>=0.5,N39*A45^6+O39*A45^5+P39*A45^4+Q39*A45^3+R39*A45^2+S39*A45+T39,N39*A45^6+O39*A45^5+P39*A45^4+Q39*A45^3+R39*A45^2+S39*A45+T39)) -> 184.4 | C45: =ABS(B38-B45) -> 0
A46: 0.75 | B46: =IF(A46>=0.85,N38*A46^6+O38*A46^5+P38*A46^4+Q38*A46^3+R38*A46^2+S38*A46 + T38,IF(A46>=0.5,N39*A46^6+O39*A46^5+P39*A46^4+Q39*A46^3+R39*A46^2+S39*A46+T39,N39*A46^6+O39*A46^5+P39*A46^4+Q39*A46^3+R39*A46^2+S39*A46+T39)) -> 184.3 | C46: =ABS(B39-B46) -> 5.684341886e-14
A47: 0.5 | B47: =IF(A47>=0.85,N38*A47^6+O38*A47^5+P38*A47^4+Q38*A47^3+R38*A47^2+S38*A47 + T38,IF(A47>=0.5,N39*A47^6+O39*A47^5+P39*A47^4+Q39*A47^3+R39*A47^2+S39*A47+T39,N39*A47^6+O39*A47^5+P39*A47^4+Q39*A47^3+R39*A47^2+S39*A47+T39)) -> 192.6 | C47: =ABS(B40-B47) -> 8.526512829e-14
A49: Extrapolated example: | M49: formula | N49: ="IF(VALUE>=0.85,"&N38&"*VALUE^6+"&O38&"*VALUE^5+"&P38&"*VALUE^4+"&Q38&"*VALUE^3+"&R38&"*VALUE^2+"&S38&"*VALUE + "&T38&",IF(VALUE>=0.5,"&N39&"*VALUE^6+"&O39&"*VALUE^5+"&P39&"*VALUE^4+"&Q39&"*VALUE^3+"&R39&"*VALUE^2+"&S39&"*VALUE+"&T39&","&N39&"*VALUE^6+"&O39&"*VALUE^5+"&P39&"*VALUE^4+"&Q39&"*VALUE^3+"&R39&"*VALUE^2+"&S39&"*VALUE+"&T39&"))" -> IF(VALUE>=0.85,0*VALUE^6+0*VALUE^5+0*VALUE^4+0*VALUE^3+0*VALUE^2+18.6666666666666*VALUE + 168.533333333333,IF(VALUE>=0.5,0*VALUE^6+0*VALUE^5+0*VALUE^4+-349.919413919413*VALUE^3+832.545054945053*VALUE^2+-658.352014652014*VALUE+357.37967032967,0*VALUE^6+0*VALUE^5+0*VALUE^4+-349.919413919413*VALUE^3+832.545054945053*VALUE^2+-658.352014652014*VALUE+357.37967032967))
A50: 0.93 | B50: =IF(A50>=0.85,N38*A50^6+O38*A50^5+P38*A50^4+Q38*A50^3+R38*A50^2+S38*A50 + T38,IF(A50>=0.5,N39*A50^6+O39*A50^5+P39*A50^4+Q39*A50^3+R39*A50^2+S39*A50+T39,N39*A50^6+O39*A50^5+P39*A50^4+Q39*A50^3+R39*A50^2+S39*A50+T39)) -> 185.8933333
A53: Reference data:
A54: 1 | B54: 184.7
A55: 0.85 | B55: 181.9
A56: 0.75 | B56: 181.8
A57: 0.5 | B57: 189.2
A62: Extrapolated ref: | C62: Deviation:
A63: 1 | B63: =IF(A63>=0,-33.523809524253*A63^3 + 157.828571429476*A63^2 - 187.076190476946*A63^1 + 247.471428571646,1) -> 184.7 | C63: =ABS(B54-B63) -> 7.702283256e-11
A64: 0.85 | B64: =IF(A64>=0,-33.523809524253*A64^3 + 157.828571429476*A64^2 - 187.076190476946*A64^1 + 247.471428571646,1) -> 181.9 | C64: 4.359890227e-11
A65: 0.75 | B65: 181.8 | C65: 2.751221473e-11
A66: 0.5 | B66: 189.2 | C66: 1.037392394e-11
A71: Extrapolated example:
A72: 0.83 | B72: =IF(A72>=0,-33.523809524253*A72^3 + 157.828571429476*A72^2 - 187.076190476946*A72^1 + 247.471428571646,1) -> 181.7578149
A76: Reference data:
A77: 1 | B77: 176
A78: 0.85 | B78: 172
A79: 0.75 | B79: 178
A80: 0.65 | B80: 182
A81: 0.5 | B81: 183
A82: 0.25 | B82: 198.5
A85: Extrapolated ref: | C85: Deviation:
A86: 1 | B86: =IF(A86>=0.85,26.6666666666632*A86 + 149.333333333332,IF(A86>=0.75,-60.0000000000062*A86 + 223.000000000016,-543.333333333255*A86^3 + 898.999999999476*A86^2 - 498.541666666555*A86^1 + 275.437500000053)) -> 176 | C86: =ABS(B77-B86) -> 4.803268894e-12
A87: 0.85 | B87: =IF(A87>=0.85,26.6666666666632*A87 + 149.333333333332,IF(A87>=0.75,-60.0000000000062*A87 + 223.000000000016,-543.333333333255*A87^3 + 898.999999999476*A87^2 - 498.541666666555*A87^1 + 275.437500000053)) -> 172 | C87: 4.263256415e-12
A88: 0.75 | B88: 178 | C88: 1.134026206e-11
A89: 0.65 | B89: 182 | C89: 7.432277016e-11
A90: 0.5 | B90: 183 | C90: 1.239186531e-11
A91: 0.25 | B91: 198.5 | C91: =ABS(B82-B91) -> 4.936850928e-11
A94: Extrapolated example:
A95: 0.83 | B95: =IF(A95>=0.85,26.6666666666632*A95 + 149.333333333332,IF(A95>=0.75,-60.0000000000062*A95 + 223.000000000016,-543.333333333255*A95^3 + 898.999999999476*A95^2 - 498.541666666555*A95^1 + 275.437500000053)) -> 173.2
A99: Reference data:
A100: 1 | B100: 176.5
A101: 0.85 | B101: 173
A102: 0.75 | B102: 178
A103: 0.65 | B103: 182
A104: 0.5 | B104: 183
A105: 0.25 | B105: 198.5
A108: Extrapolated ref: | C108: Deviation:
A109: 1 | B109: =IF(A109>=0.85,23.3333333333278*A109 + 153.166666666668,IF(A109>=0.75,-50.0000000000147*A109 + 215.500000000017,-543.333333333255*A109^3 + 898.999999999476*A109^2 - 498.541666666555*A109^1 + 275.437500000053)) -> 176.5 | C109: =ABS(B100-B109) -> 4.206412996e-12
A110: 0.85 | B110: =IF(A110>=0.85,23.3333333333278*A110 + 153.166666666668,IF(A110>=0.75,-50.0000000000147*A110 + 215.500000000017,-543.333333333255*A110^3 + 898.999999999476*A110^2 - 498.541666666555*A110^1 + 275.437500000053)) -> 173 | C110: 3.382183422e-12
A111: 0.75 | B111: 178 | C111: 5.96855898e-12
A112: 0.65 | B112: 182 | C112: 7.432277016e-11
A113: 0.5 | B113: 183 | C113: 1.239186531e-11
A114: 0.25 | B114: 198.5 | C114: =ABS(B105-B114) -> 4.936850928e-11
A117: Extrapolated example:
A118: 0.83 | B118: =IF(A118>=0.85,23.3333333333278*A118 + 153.166666666668,IF(A118>=0.75,-50.0000000000147*A118 + 215.500000000017,-543.333333333255*A118^3 + 898.999999999476*A118^2 - 498.541666666555*A118^1 + 275.437500000053)) -> 174
A122: Reference data:
A123: 1 | B123: 175.5
A124: 0.85 | B124: 171.5
A125: 0.75 | B125: 171
A126: 0.65 | B126: 173.5
A127: 0.5 | B127: 178
A128: 0.25 | B128: 196.5
A131: Extrapolated ref: | C131: Deviation:
A132: 1 | B132: =IF(A132>=0,-2698.41271185874*A132^5 + 9014.28576010465*A132^4 - 11573.4127558171*A132^3 + 7161.94051017612*A132^2 - 2168.04961301665*A132^1 + 439.148810940739,1) -> 175.5000005 | C132: =ABS(B123-B132) -> 5.290197009e-07
A133: 0.85 | B133: =IF(A133>=0,-2698.41271185874*A133^5 + 9014.28576010465*A133^4 - 11573.4127558171*A133^3 + 7161.94051017612*A133^2 - 2168.04961301665*A133^1 + 439.148810940739,1) -> 171.5000003 | C133: 3.040302659e-07
A134: 0.75 | B134: 171.0000002 | C134: 2.41427017e-07
A135: 0.65 | B135: 173.5000002 | C135: 2.326844992e-07
A136: 0.5 | B136: 178.0000003 | C136: 2.602617428e-07
A137: 0.25 | B137: 196.5000003 | C137: =ABS(B128-B137) -> 3.494261023e-07
A140: Extrapolated example:
A141: 0.78 | B141: =IF(A141>=0,-2698.41271185874*A141^5 + 9014.28576010465*A141^4 - 11573.4127558171*A141^3 + 7161.94051017612*A141^2 - 2168.04961301665*A141^1 + 439.148810940739,1) -> 170.7726696
A145: Reference data:
A146: 1 | B146: 176
A147: 0.85 | B147: 172.5
A148: 0.75 | B148: 172
A149: 0.65 | B149: 173.5
A150: 0.5 | B150: 178
A151: 0.25 | B151: 196.5
A154: Extrapolated ref: | C154: Deviation:
A155: 1 | B155: =IF(A155>=0,-984.126989364624*A155^5 + 3309.52382850646*A155^4 - 4302.46034145355*A155^3 + 2766.48810917139*A155^2 - 923.037702590227*A155^1 + 309.613096068185,1) -> 176.0000003 | C155: =ABS(B146-B155) -> 3.376337645e-07
A156: 0.85 | B156: =IF(A156>=0,-984.126989364624*A156^5 + 3309.52382850646*A156^4 - 4302.46034145355*A156^3 + 2766.48810917139*A156^2 - 923.037702590227*A156^1 + 309.613096068185,1) -> 172.5000002 | C156: 1.962450824e-07
A157: 0.75 | B157: 172.0000002 | C157: 1.755893209e-07
A158: 0.65 | B158: 173.5000002 | C158: 1.931748557e-07
A159: 0.5 | B159: 178.0000002 | C159: 2.482344712e-07
A160: 0.25 | B160: 196.5000004 | C160: =ABS(B151-B160) -> 3.506803523e-07
A163: Extrapolated example:
A164: 0.83 | B164: =IF(A164>=0,-984.126989364624*A164^5 + 3309.52382850646*A164^4 - 4302.46034145355*A164^3 + 2766.48810917139*A164^2 - 923.037702590227*A164^1 + 309.613096068185,1) -> 172.2273913
A168: Reference data:
A169: 1 | B169: 176
A170: 0.85 | B170: 174
A171: 0.75 | B171: 183
A172: 0.5 | B172: 183
A173: 0.25 | B173: 200
A174: 0.1 | B174: 248.5
A177: Extrapolated ref: | C177: Deviation:
A178: 1 | B178: =IF(A178>=0.85,13.3333333333316*A178 + 162.666666666669,156.776556786615*A178^4 - 1023.66300368197*A178^3 + 1426.5311355435*A178^2 - 726.790293044539*A178^1 + 307.921703297768) -> 176 | C178: =ABS(B169-B178) -> 5.96855898e-13
A179: 0.85 | B179: =IF(A179>=0.85,13.3333333333316*A179 + 162.666666666669,156.776556786615*A179^4 - 1023.66300368197*A179^3 + 1426.5311355435*A179^2 - 726.790293044539*A179^1 + 307.921703297768) -> 174 | C179: 8.526512829e-13
A180: 0.75 | B180: 183 | C180: 1.631406121e-11
A181: 0.5 | B181: 183 | C181: 2.906972441e-10
A182: 0.25 | B182: 200 | C182: 5.189235708e-10
A183: 0.1 | B183: 248.5 | C183: 7.457572337e-10
A186: Extrapolated example:
A187: 0.83 | B187: =IF(A187>=0.85,13.3333333333316*A187 + 162.666666666669,156.776556786615*A187^4 - 1023.66300368197*A187^3 + 1426.5311355435*A187^2 - 726.790293044539*A187^1 + 307.921703297768) -> 176.509383
A191: Reference data:
A192: 1 | B192: 176.5
A193: 0.85 | B193: 175
A194: 0.75 | B194: 183
A195: 0.5 | B195: 183
A196: 0.25 | B196: 200
A197: 0.1 | B197: 248.5
A200: Extrapolated ref: | C200: Deviation:
A201: 1 | B201: =IF(A201>=0.85,10.0000000000012*A201 + 166.500000000005,220.268620280083*A201^4 - 1125.25030527152*A201^3 + 1479.70573871962*A201^2 - 737.107753362321*A201^1 + 308.516941393028) -> 176.5 | C201: =ABS(B192-B201) -> 6.195932656e-12
A202: 0.85 | B202: =IF(A202>=0.85,10.0000000000012*A202 + 166.500000000005,220.268620280083*A202^4 - 1125.25030527152*A202^3 + 1479.70573871962*A202^2 - 737.107753362321*A202^1 + 308.516941393028) -> 175 | C202: 6.025402399e-12
A203: 0.75 | B203: 183 | C203: 1.460875865e-10
A204: 0.5 | B204: 183 | C204: 3.377067515e-10
A205: 0.25 | B205: 200 | C205: 5.255742508e-10
A206: 0.1 | B206: 248.5 | C206: 7.48570983e-10
A209: Extrapolated example:
A210: 0.4 | B210: =IF(A210>=0.85,10.0000000000012*A210 + 166.500000000005,220.268620280083*A210^4 - 1125.25030527152*A210^3 + 1479.70573871962*A210^2 - 737.107753362321*A210^1 + 308.516941393028) -> 184.0496154
A214: Reference data:
A215: 1 | B215: 174.5
A216: 0.85 | B216: 173
A217: 0.75 | B217: 182
A218: 0.65 | B218: 178
A219: 0.5 | B219: 182
A220: 0.25 | B220: 198
A221: 0.1 | B221: 238
A223: Extrapolated ref: | C223: Deviation:
A224: 1 | B224: =IF(A224>=0.85,9.99999999999617*A224 + 164.500000000007,-8843.15685164928*A224^5 + 21586.6134075522*A224^4 - 19888.8078777552*A224^3 + 8667.81768990636*A224^2 - 1852.02131308377*A224^1 + 354.342532440556) -> 174.5 | C224: =ABS(B215-B224) -> 3.154809747e-12
A225: 0.85 | B225: =IF(A225>=0.85,9.99999999999617*A225 + 164.500000000007,-8843.15685164928*A225^5 + 21586.6134075522*A225^4 - 19888.8078777552*A225^3 + 8667.81768990636*A225^2 - 1852.02131308377*A225^1 + 354.342532440556) -> 173 | C225: 3.723243935e-12
A226: 0.75 | B226: 182.0000001 | C226: 6.127817187e-08
A227: 0.65 | B227: 178 | C227: 3.756764499e-08
A228: 0.5 | B228: 182 | C228: 1.383324388e-08
A229: 0.25 | B229: 198 | C229: 4.085200089e-08
A230: 0.1 | B230: 237.9999999 | C230: 7.427388482e-08
A232: Extrapolated example:
A233: 0.83 | B233: =IF(A233>=0.85,9.99999999999617*A233 + 164.500000000007,-8843.15685164928*A233^5 + 21586.6134075522*A233^4 - 19888.8078777552*A233^3 + 8667.81768990636*A233^2 - 1852.02131308377*A233^1 + 354.342532440556) -> 177.551518
A237: Reference data:
A238: 1 | B238: 174.5
A239: 0.85 | B239: 171
A240: 0.75 | B240: 180
A241: 0.65 | B241: 178
A242: 0.5 | B242: 182
A243: 0.25 | B243: 198
A244: 0.1 | B244: 238
A246: Extrapolated ref: | C246: Deviation:
A247: 1 | B247: =IF(A247>=0.85,23.3333333333328*A247 + 151.166666666665,-7016.53902375698*A247^5 + 17230.5694482922*A247^4 - 16090.1021365166*A247^3 + 7191.39644346774*A247^2 - 1606.88333976646*A247^1 + 341.211580050282) -> 174.5 | C247: =ABS(B238-B247) -> 2.188471626e-12
A248: 0.85 | B248: =IF(A248>=0.85,23.3333333333328*A248 + 151.166666666665,-7016.53902375698*A248^5 + 17230.5694482922*A248^4 - 16090.1021365166*A248^3 + 7191.39644346774*A248^2 - 1606.88333976646*A248^1 + 341.211580050282) -> 171 | C248: 2.103206498e-12
A249: 0.75 | B249: 180 | C249: 3.240143087e-08
A250: 0.65 | B250: 178 | C250: 1.564626473e-08
A251: 0.5 | B251: 182 | C251: 4.731077752e-09
A252: 0.25 | B252: 198 | C252: 4.066737347e-08
A253: 0.1 | B253: 237.9999999 | C253: 7.36115453e-08
A255: Extrapolated example:
A256: 0.83 | B256: =IF(A256>=0.85,23.3333333333328*A256 + 151.166666666665,-7016.53902375698*A256^5 + 17230.5694482922*A256^4 - 16090.1021365166*A256^3 + 7191.39644346774*A256^2 - 1606.88333976646*A256^1 + 341.211580050282) -> 175.0359077
A260: Reference data:
A261: 1 | B261: 175
A262: 0.85 | B262: 174
A263: 0.75 | B263: 183
A264: 0.65 | B264: 179
A265: 0.5 | B265: 182
A266: 0.25 | B266: 198
A267: 0.1 | B267: 238
A269: Extrapolated ref: | C269: Deviation:
A270: 1 | B270: =IF(A270>=0.85,6.6666666666658*A270 + 168.333333333333,-8241.31424945592*A270^5 + 20052.5141722857*A270^4 - 18458.6152916491*A270^3 + 8081.21770620942*A270^2 - 1751.10545110288*A270^1 + 348.834144990409) -> 175 | C270: =ABS(B261-B270) -> 1.193711796e-12
A271: 0.85 | B271: =IF(A271>=0.85,6.6666666666658*A271 + 168.333333333333,-8241.31424945592*A271^5 + 20052.5141722857*A271^4 - 18458.6152916491*A271^3 + 8081.21770620942*A271^2 - 1751.10545110288*A271^1 + 348.834144990409) -> 174 | C271: 1.080024958e-12
A272: 0.75 | B272: 183 | C272: 9.921734545e-09
A273: 0.65 | B273: 179 | C273: 1.21954713e-08
A274: 0.5 | B274: 182 | C274: 7.545111202e-09
... 115 more rows
